bitfinex/quotes_ETHUSD_20250424
["timestamp","ask_amount","ask_price","bid_price","bid_amount"]
[1745509548687,0.21435981,1771.1,1770.8,0.7534]
[1745509548889,0.21435981,1771.1,1770.7,5.64725859]
[1745509548890,0.7705,1771.0,1770.7,5.64725859]
[1745509549090,0.7705,1771.0,1770.6,10.75357797]
[1745509549270,0.21948631,1770.9,1770.6,10.75357797]
[1745509549459,0.21948631,1770.9,1770.7,0.52058709]
[1745509549995,0.21948631,1770.9,1770.6,11.2951929]
[1745509550170,0.21948631,1770.9,1770.7,1.12951929]
[1745509550775,5.64716592,1770.8,1770.5,0.7534]
[1745509550970,0.21948631,1770.9,1770.5,5.6481121]
[1745509550971,0.21946862,1770.7,1770.5,5.6481121]
[1745509551278,0.7705,1771.0,1770.6,6.40098321]
[1745509551471,0.7705,1771.0,1770.7,5.64737849]
[1745509551673,6.41710001,1771.0,1770.6,6.40098321]
[1745509551868,0.7705,1771.0,1770.6,7.6058796]
[1745509552068,6.41709659,1771.0,1770.6,7.60587467]
[1745509552575,0.7705,1771.0,1770.4,5.64822195]
[1745509552775,5.64716367,1770.9,1770.5,0.52026259]
[1745509552972,5.64716367,1770.9,1770.5,6.16837225]
[1745509553180,0.7705,1771.0,1770.5,5.64783047]
[1745509553387,12.06398239,1771.0,1770.5,5.64783047]
[1745509553588,5.64686759,1770.9,1770.5,6.85842908]
[1745509554177,5.64686759,1770.9,1770.5,1.21059861]
[1745509554396,5.64730771,1770.8,1770.4,6.40168243]
[1745509554589,5.64730771,1770.8,1770.4,6.40160896]
[1745509554787,0.8181,1770.7,1770.5,0.52064017]
[1745509554974,5.647803,1770.6,1770.5,0.52064017]
[1745509555505,5.64847959,1770.4,1770.0,6.40223364]
[1745509555799,0.8187,1770.4,1770.0,6.40227894]
[1745509556006,0.8187,1770.4,1770.1,5.6493787]
[1745509556565,0.8187,1770.4,1770.2,0.52136112]
[1745509557066,0.8187,1770.4,1770.1,5.6493787]
[1745509557502,6.46729782,1770.4,1770.0,6.40227894]
[1745509557768,6.46729782,1770.4,1770.0,13.29860535]
[1745509558003,0.8187,1770.4,1770.1,5.64924768]
[1745509558504,0.8187,1770.4,1770.2,0.52151051]
[1745509559135,5.64876009,1770.3,1770.0,1.24683186]
[1745509559311,6.46723303,1770.4,1769.9,11.29972741]
[1745509559598,12.1159321,1770.4,1770.0,6.17109293]
[1745509559901,5.64887466,1770.3,1770.0,0.52138157]
[1745509560100,6.46723303,1770.4,1770.1,0.52138157]
[1745509560275,0.8187,1770.4,1770.1,0.52138157]
[1745509560605,0.8187,1770.4,1770.0,5.64968397]
[1745509560606,6.46714195,1770.4,1770.0,5.64968397]
[1745509560772,6.46714195,1770.4,1770.0,6.82151755]
[1745509561105,0.8187,1770.4,1770.1,5.64935156]
[1745509561509,6.46729335,1770.4,1770.2,0.52144628]
[1745509561666,5.64876009,1770.3,1770.2,0.52144628]
[1745509562102,5.64876009,1770.3,1769.8,6.40354945]
[1745509562103,5.64910362,1770.2,1769.8,6.40354945]
[1745509562303,5.64876009,1770.3,1769.8,7.0439044]
[1745509562691,5.64909576,1770.2,1769.9,0.52168442]
[1745509563007,5.86170904,1770.2,1769.9,0.52168442]
[1745509563211,6.41571735,1770.1,1769.9,0.52168442]
[1745509563411,6.41571735,1770.1,1769.7,5.65053657]
[1745509563412,0.21241873,1770.0,1769.7,5.65053657]
[1745509563706,5.65005282,1769.9,1769.7,2.05875226]
[1745509563905,0.21241873,1770.0,1769.2,5.51600077]
[1745509564128,0.7791,1771.3,1769.9,4.95767294]
[1745509564329,0.7791,1771.3,1769.3,24.80311208]
[1745509564330,0.7791,1771.3,1770.8,5.64692669]
[1745509564481,0.12505356,1771.2,1771.1,5.64620857]
[1745509564670,0.7843,1771.8,1771.3,5.64557104]
[1745509564882,0.7843,1771.8,1771.2,5.64569329]
[1745509565106,0.10889833,1771.7,1771.2,5.64569329]
[1745509565295,5.21089833,1771.7,1771.2,5.64569329]
[1745509565481,5.102,1771.6,1771.2,6.0729082]
[1745509565811,0.10888065,1771.5,1771.2,6.73666111]
[1745509566113,0.10888065,1771.5,1771.4,5.64525234]
[1745509566297,0.10888065,1771.5,1771.2,1.09096782]
[1745509566691,0.10888065,1771.5,1771.2,6.073102]
[1745509567009,0.10596199,1771.4,1771.2,6.073102]
[1745509567312,5.102,1771.6,1771.2,6.07298167]
[1745509567498,0.10595315,1771.3,1771.2,6.07298167]
[1745509567989,5.102,1771.6,1771.3,5.64554213]
[1745509568312,0.10597084,1771.5,1771.3,5.64554213]
[1745509568678,0.10597084,1771.5,1771.2,6.68029549]
[1745509569413,0.10597084,1771.5,1771.2,1.03451308]
[1745509569779,5.64578936,1771.3,1770.8,5.64703893]
[1745509569978,5.75824302,1771.2,1770.8,6.07499506]
[1745509570179,0.11218034,1771.2,1770.8,6.07499506]
[1745509570379,0.11218034,1771.2,1770.9,0.52083231]
[1745509570603,5.75820931,1771.2,1770.9,0.52083231]
[1745509570810,5.75809831,1771.2,1770.7,5.64726483]
[1745509571009,16.50528263,1771.2,1770.7,6.77675536]
[1745509571212,5.21318034,1771.2,1770.8,6.16806264]
[1745509571417,10.85915578,1771.2,1770.8,6.16806264]
[1745509571616,10.85915578,1771.2,1770.9,0.52103738]
[1745509572427,10.85915578,1771.2,1770.8,6.16816416]
[1745509572895,10.85915578,1771.2,1770.8,5.64712678]
[1745509573325,10.85915578,1771.2,1770.9,0.52139549]
[1745509573693,5.64630557,1771.1,1770.9,0.52139549]
[1745509573906,10.85915578,1771.2,1770.7,6.77696587]
[1745509574110,0.11098482,1771.0,1770.8,0.67769659]
[1745509574294,0.11099366,1771.1,1770.8,0.67769659]
[1745509574495,0.11097597,1770.9,1770.8,0.67769659]
[1745509574981,5.64621847,1771.1,1770.8,0.52123409]
[1745509575183,5.101,1771.2,1770.8,0.52123409]
[1745509575383,0.11099366,1771.1,1770.8,6.16837341]
[1745509575584,10.74700581,1771.2,1770.8,6.16837341]
[1745509575814,0.11099366,1771.1,1770.7,5.64748334]
[1745509576048,10.74700581,1771.2,1770.7,1.17168523]
[1745509576339,6.54831433,1771.0,1770.6,0.42175645]
[1745509576633,11.29401614,1770.9,1770.4,5.64829537]
[1745509576838,5.75804733,1770.9,1770.4,5.64820341]
[1745509577036,0.8255,1770.7,1770.2,5.64891558]
[1745509577204,6.47318169,1770.7,1770.2,5.64891558]
[1745509577533,5.64844103,1770.4,1770.3,0.5216752]
[1745509577735,6.47394103,1770.4,1770.3,0.5216752]
[1745509577937,7.6861606,1770.4,1770.3,0.5216752]
[1745509578107,5.9265,1770.4,1770.3,0.5216752]
[1745509578436,5.9265,1770.4,1770.1,5.64918292]
[1745509578737,5.8791,1770.8,1770.2,5.01416312]
[1745509578902,5.8791,1771.0,1770.7,5.64748404]
[1745509579109,5.101,1771.1,1770.7,5.64732305]
[1745509579310,10.74727216,1771.1,1770.7,6.70778655]
[1745509580548,5.101,1771.1,1770.8,0.52118617]
[1745509580721,10.74735209,1771.1,1770.8,0.52118617]
[1745509580923,5.64655857,1771.0,1770.8,0.52118617]
[1745509581250,10.74735209,1771.1,1770.8,0.52118617]
[1745509581465,10.74735209,1771.1,1770.7,1.0604996]
[1745509581749,5.64672279,1771.0,1770.6,5.64763322]
[1745509581922,5.101,1771.1,1770.7,5.64723534]
[1745509582122,10.74721143,1771.1,1770.7,5.64723534]
[1745509582332,10.74720878,1771.1,1770.7,5.64723534]
[1745509582647,10.74720878,1771.1,1770.8,0.52153289]
[1745509583251,10.74720878,1771.1,1770.7,5.64723534]
[1745509583438,10.74720878,1771.1,1770.7,6.77672652]
[1745509583637,10.74720878,1771.1,1770.7,1.12949118]
[1745509583946,5.64662081,1771.0,1770.7,0.81739118]
[1745509584116,10.74720878,1771.1,1770.7,6.4647798]
[1745509584846,5.101,1771.1,1770.8,0.52170276]
[1745509585014,10.74740889,1771.1,1770.8,0.52170276]
[1745509585213,10.74740889,1771.1,1770.7,6.46486353]
[1745509586046,5.64688655,1770.9,1770.5,5.64789679]
[1745509586245,5.6466253,1771.0,1770.6,0.52202203]
[1745509586449,5.64700956,1770.9,1770.6,0.52202203]
[1745509586748,5.6466253,1771.0,1770.5,5.64789679]
[1745509586949,5.6466253,1771.0,1770.6,5.64779628]
[1745509587271,5.6466253,1771.0,1770.7,0.52186854]
[1745509587450,5.6466253,1771.0,1770.6,5.64779628]
[1745509587650,5.6466253,1771.0,1770.5,6.21268647]
[1745509587944,5.64666507,1771.0,1770.6,0.52193683]
[1745509588252,11.29347091,1771.0,1770.6,6.16971758]
[1745509588546,5.64685148,1770.9,1770.7,0.52193683]
[1745509588750,5.64685148,1770.9,1770.6,0.52193683]
[1745509588955,6.47815148,1770.9,1770.6,0.52193683]
[1745509589363,6.47878404,1770.7,1770.6,0.52193683]
[1745509589535,5.64834861,1770.5,1770.1,5.64930095]
[1745509590158,5.64834861,1770.5,1770.2,0.52258404]
[1745509590350,5.64792743,1770.6,1770.2,6.17166163]
[1745509590657,5.6478392,1770.6,1770.2,6.17166163]
[1745509590822,5.64731126,1770.8,1770.4,5.64828697]
[1745509591020,5.64748614,1770.7,1770.4,0.43266787]
[1745509591224,17.17287201,1770.9,1770.4,5.64827902]
[1745509591426,5.64717196,1770.8,1770.5,0.52258404]
[1745509591625,5.647515,1770.7,1770.5,0.52258404]
[1745509591934,5.64732043,1770.8,1770.5,0.52258404]
[1745509592238,5.64751326,1770.7,1770.3,6.07619607]
[1745509592439,0.7995,1770.6,1770.2,5.64889147]
[1745509592648,7.36466468,1770.8,1770.4,6.17107266]
[1745509592965,1.7173164,1770.8,1770.5,5.647977]
[1745509593162,11.5474849,1770.9,1770.5,5.64794813]
[1745509593336,11.5474849,1770.9,1770.6,0.52273493]
[1745509593867,11.5474849,1770.9,1770.7,0.52273493]
[1745509594163,5.64716512,1770.8,1770.7,0.52273493]
[1745509594367,11.5474849,1770.9,1770.6,0.52273493]
[1745509594590,10.74781469,1771.0,1770.6,1.13980947]
[1745509594861,10.74781469,1771.0,1770.7,0.52273493]
[1745509595268,10.74767728,1771.0,1770.7,0.52273493]
[1745509595432,5.64701148,1770.9,1770.5,5.64792724]
[1745509595758,5.64695157,1770.9,1770.6,0.52286853]
[1745509596125,5.64695157,1770.9,1770.7,0.52286853]
[1745509596526,10.74771937,1771.0,1770.7,5.64747663]
[1745509596727,10.74771937,1771.0,1770.6,5.64764122]
[1745509596957,11.53434749,1771.1,1770.7,5.64746447]
[1745509597159,5.101,1771.1,1770.4,10.60610904]
[1745509597482,5.101,1771.2,1770.9,5.64680903]
[1745509597665,5.101,1771.2,1770.9,5.64664296]
[1745509598031,5.101,1771.2,1771.0,0.52290998]
[1745509598227,5.64620857,1771.1,1771.0,0.52290998]
[1745509598433,5.64620857,1771.1,1770.7,11.29461894]
[1745509598666,5.64620857,1771.1,1770.8,1.12946189]
[1745509598866,10.7470311,1771.2,1770.8,6.77661807]
[1745509599067,0.7602,1771.3,1770.9,0.52309313]
[1745509599270,0.29449831,1771.5,1770.9,0.5795554]
[1745509599271,11.52570083,1771.5,1770.9,0.5795554]
[1745509599433,11.52570083,1771.5,1771.1,5.64595439]
[1745509599637,17.17090819,1771.5,1771.2,0.52309313]
[1745509599946,5.64526323,1771.4,1771.2,0.52309313]
[1745509600456,5.64526323,1771.4,1770.9,5.64666945]
[1745509600457,5.64557406,1771.3,1770.9,5.64664259]
[1745509600656,5.64557406,1771.3,1771.0,0.56466426]
[1745509600851,5.64589089,1771.2,1770.7,5.64730711]
[1745509601052,11.29287179,1771.1,1770.8,0.52309415]
[1745509601371,11.29287179,1771.1,1770.9,0.52309415]
[1745509601785,5.64652738,1771.0,1770.9,0.52309415]
[1745509602337,6.4058835,1771.2,1770.9,0.52309415]
[1745509602529,0.7598,1771.2,1771.0,5.64627707]
[1745509602783,0.12635348,1771.1,1771.0,5.64627707]
[1745509602944,0.12635348,1771.1,1770.9,6.78691733]
[1745509603265,6.47488942,1771.4,1771.0,6.1693865]
[1745509603642,0.8295,1771.4,1771.0,0.52309415]
[1745509603844,0.2,1771.8,1771.6,5.64459601]
[1745509604071,0.2,1771.8,1771.6,5.64438662]
[1745509604941,0.2,1771.8,1771.7,0.52223858]
[1745509607551,0.2,1771.8,1771.4,5.64505113]
[1745509607769,5.84408445,1771.8,1771.4,7.07410024]
[1745509607977,0.2,1771.8,1771.5,6.16623136]
[1745509608783,0.2,1771.8,1771.6,0.52140111]
[1745509610209,0.2,1771.8,1771.5,0.52140111]
[1745509611000,5.84402672,1771.8,1771.4,7.07407355]
[1745509611173,5.64435393,1771.7,1771.3,5.64545329]
[1745509611374,5.64461832,1771.6,1771.4,0.52083409]
[1745509611578,5.64435393,1771.7,1771.4,0.52083409]
[1745509611910,5.6446229,1771.6,1771.2,5.64578058]
[1745509612087,5.6446229,1771.6,1771.2,6.77496204]
[1745509612680,5.64531694,1771.4,1771.0,10.74638399]
[1745509612870,5.64588979,1771.2,1771.1,0.52074385]
[1745509613303,5.64588979,1771.2,1770.8,5.64706542]
[1745509614115,5.6456055,1771.3,1770.9,6.16775399]
[1745509614418,11.2914203,1771.3,1770.9,6.16775399]
[1745509614782,5.64591562,1771.2,1770.8,5.64706542]
[1745509614990,5.64591562,1771.2,1770.8,6.77650298]
[1745509615293,5.64591562,1771.2,1770.8,12.42348956]
[1745509615487,0.7664,1771.5,1771.2,5.64575231]
[1745509615693,5.099,1771.6,1771.3,5.64547547]
[1745509616078,5.099,1771.6,1771.4,5.64515922]
[1745509616311,5.099,1771.6,1771.4,1.12905549]
[1745509616509,5.099,1771.6,1771.2,5.64574331]
[1745509616817,5.64512934,1771.5,1771.1,5.6460624]
[1745509617016,5.64535301,1771.4,1771.0,5.64644798]
[1745509617516,5.64535301,1771.4,1771.1,0.52059267]
[1745509617695,5.64535301,1771.4,1771.0,5.64629685]
[1745509617899,5.64512934,1771.5,1771.0,1.12929588]
[1745509618103,11.29035929,1771.5,1771.1,5.64619417]
[1745509618307,5.64527092,1771.4,1771.0,5.64622475]
[1745509618918,5.64527092,1771.4,1771.1,0.52057463]
[1745509619090,5.099,1771.6,1771.1,0.52057463]
[1745509619294,5.099,1771.6,1771.3,5.64556816]
[1745509619903,5.64511162,1771.5,1771.1,11.91441752]
[1745509620104,5.64511162,1771.5,1771.1,6.26834994]
[1745509620309,10.74375621,1771.6,1771.2,5.64583143]
[1745509620622,10.74375621,1771.6,1771.3,0.5209723]
[1745509620824,5.64494093,1771.5,1771.3,0.5209723]
[1745509620997,6.47365234,1771.4,1771.3,0.5209723]
[1745509621334,12.11918882,1771.4,1770.9,5.64665067]
[1745509621495,5.64576874,1771.3,1770.9,5.64661603]
[1745509621696,6.47365234,1771.4,1771.0,6.16810761]
[1745509622012,5.64557591,1771.3,1771.0,0.5215854]
[1745509622208,5.64557591,1771.3,1771.1,0.5215854]
[1745509623031,6.47377578,1771.4,1771.0,0.5215854]
[1745509623211,0.8284,1771.4,1771.2,0.5215854]
[1745509623533,6.47368153,1771.4,1771.2,0.5215854]
[1745509624098,6.81795391,1771.6,1771.2,0.5215854]
[1745509624099,5.8596,1771.6,1771.2,0.5215854]
[1745509624297,5.64498897,1771.5,1771.1,0.5215854]
[1745509624596,5.64498897,1771.5,1771.1,1.08619767]
[1745509624798,5.8596,1771.6,1771.2,0.5215854]
[1745509625025,5.64557104,1771.3,1771.2,0.5215854]
[1745509625224,5.64538169,1771.4,1771.2,0.5215854]
[1745509625529,5.64557104,1771.3,1771.2,0.5215854]
[1745509625735,5.64557104,1771.3,1771.0,0.5215854]
[1745509625929,5.64557104,1771.3,1771.0,1.13840719]
[1745509626143,5.64538169,1771.4,1771.0,6.78488947]
[1745509626326,5.64538169,1771.4,1771.1,0.5215854]
[1745509626857,5.64538169,1771.4,1771.2,0.5215854]
[1745509627026,5.64557104,1771.3,1771.2,0.5215854]
[1745509627367,5.64588979,1771.2,1771.1,0.5215854]
[1745509627830,5.64588979,1771.2,1770.8,0.5215854]
[1745509628024,5.64631055,1771.1,1770.8,0.5215854]
[1745509628229,5.64588979,1771.2,1770.9,0.5215854]
[1745509628762,5.64588979,1771.2,1771.0,0.5215854]
[1745509628967,11.29201623,1771.2,1771.0,0.5215854]
[1745509629271,5.64588979,1771.2,1771.1,0.5215854]
[1745509629430,0.7624,1771.3,1771.1,0.5215854]
[1745509629622,0.7624,1771.3,1771.2,0.5215854]
[1745509630025,6.40797104,1771.3,1771.2,0.5215854]
[1745509630250,5.64620857,1771.1,1771.0,0.5215854]
[1745509630440,11.29205765,1771.2,1771.0,0.5215854]
[1745509630762,5.64593425,1771.2,1771.0,0.5215854]
[1745509631068,7.6134845,1771.3,1771.1,0.5215854]
[1745509631069,6.40815728,1771.3,1771.1,0.5215854]
[1745509631427,5.64588979,1771.2,1770.8,11.91085416]
[1745509631671,5.64588979,1771.2,1770.9,1.19108542]
[1745509632040,11.29203902,1771.2,1770.9,1.19108542]
[1745509632235,5.64588979,1771.2,1771.0,0.52256979]
[1745509632439,0.7624,1771.3,1771.0,0.52256979]
[1745509632639,5.64541547,1771.4,1771.1,0.52256979]
[1745509633243,5.64541547,1771.4,1771.2,0.52256979]
[1745509633748,5.64541547,1771.4,1771.3,0.52256979]
[1745509634150,5.64541547,1771.4,1771.1,6.16877326]
[1745509634351,6.41447095,1771.5,1771.1,6.22523068]
[1745509634663,6.41447095,1771.5,1771.2,0.52256979]
[1745509634870,0.7694,1771.5,1771.2,0.52256979]
[1745509635045,0.7694,1771.5,1771.2,6.16836142]
[1745509635371,6.41442657,1771.5,1771.3,0.52256979]
[1745509635741,6.41442657,1771.5,1771.4,0.52256979]
[1745509636244,6.41442657,1771.5,1771.1,5.64598967]
[1745509636245,6.41442657,1771.5,1771.2,0.52256979]
[1745509636440,0.8021,1771.7,1771.2,1.13942574]
[1745509636635,0.2,1771.8,1771.6,5.64451601]
[1745509636849,5.64337122,1772.0,1771.6,5.70095434]
[1745509637061,5.64337122,1772.0,1771.6,5.64451601]
[1745509637258,5.64382627,1771.9,1771.7,0.52256979]
[1745509637677,5.64382627,1771.9,1771.8,0.52256979]
[1745509638540,5.64382627,1771.9,1771.6,0.52256979]
[1745509638736,5.64382627,1771.9,1771.7,0.52256979]
[1745509638942,5.64397787,1771.8,1771.7,0.52256979]
[1745509639171,6.47177787,1771.8,1771.7,0.52256979]
[1745509639676,6.47200901,1771.8,1771.4,6.16766541]
[1745509640281,6.47200901,1771.8,1771.5,0.52256979]
[1745509640486,6.47200901,1771.8,1771.6,0.52256979]
[1745509640871,6.47200901,1771.8,1771.4,5.64509076]
[1745509641060,6.47200901,1771.8,1771.4,12.41916198]
[1745509641466,5.64461503,1771.6,1771.5,0.52357559]
[1745509641662,5.64583949,1771.3,1770.9,5.64666121]
[1745509642094,11.29093332,1771.4,1770.9,5.64666121]
[1745509642268,5.64539861,1771.4,1771.0,6.17053351]
[1745509642470,5.64539861,1771.4,1771.0,7.35225298]
[1745509642690,5.64493367,1771.5,1771.1,0.52401973]
[1745509642890,5.64493367,1771.5,1770.8,5.64702374]
[1745509642891,5.64598429,1771.2,1770.8,11.2939292]
[1745509643102,5.64598429,1771.2,1770.8,5.64696085]
[1745509643283,5.64598429,1771.2,1770.7,11.29456812]
[1745509643284,11.29213416,1771.2,1770.7,11.29456812]
[1745509643494,11.29213416,1771.2,1770.9,0.52406825]
[1745509644002,5.64622367,1771.1,1770.9,0.52406825]
[1745509644299,5.64609068,1771.2,1771.0,0.52406825]
[1745509644501,5.64609068,1771.2,1771.1,0.52406825]
[1745509645408,11.52276728,1771.3,1771.1,0.52406825]
[1745509645583,5.098,1771.3,1771.1,0.52406825]
[1745509646203,10.74366874,1771.3,1771.2,0.52406825]
[1745509646376,5.098,1771.3,1771.2,0.52406825]
[1745509646577,10.74357104,1771.3,1771.2,0.52406825]
[1745509646773,13.14886931,1771.3,1771.2,0.52406825]
[1745509646995,5.64635302,1771.1,1770.7,5.64728676]
[1745509647201,5.64654282,1771.0,1770.8,0.52377361]
[1745509647402,11.29281797,1771.1,1770.8,0.52377361]
[1745509647621,11.29279566,1771.1,1770.9,0.52377361]
[1745509647823,5.64635302,1771.1,1770.9,0.52377361]
[1745509648193,5.64604406,1771.2,1771.0,0.52377361]
[1745509648709,5.64604406,1771.2,1771.1,0.52377361]
[1745509651638,11.50813493,1771.3,1771.1,0.52377361]
[1745509651931,5.64588979,1771.2,1770.8,5.64696754]
[1745509652227,5.64588979,1771.2,1770.9,0.56469675]
[1745509652626,5.64588979,1771.2,1771.0,0.52341005]
[1745509653231,5.8624,1771.3,1771.1,0.52341005]
[1745509653431,11.50812474,1771.3,1771.1,0.52341005]
[1745509653630,17.15394132,1771.3,1771.1,0.52341005]
[1745509653927,17.15394132,1771.3,1770.9,6.21139189]
[1745509654133,5.64595347,1771.2,1771.0,0.62113919]
[1745509654438,5.64595347,1771.2,1770.9,0.56469675]
[1745509655009,0.7664,1771.3,1771.0,0.52342819]
[1745509655215,10.74238601,1771.4,1771.0,6.1698484]
[1745509655410,16.38788837,1771.4,1771.0,6.1698484]
[1745509655610,11.29144621,1771.3,1771.1,0.52342819]
[1745509655806,5.64560827,1771.3,1771.1,0.52342819]
[1745509656211,5.64560827,1771.3,1771.2,0.52342819]
[1745509660037,5.64560827,1771.3,1770.9,6.21152308]
[1745509660241,10.74240586,1771.4,1771.0,6.2676521]
[1745509660543,10.74240586,1771.4,1771.1,0.52333044]
[1745509661043,10.74240586,1771.4,1771.2,0.52333044]
[1745509661545,10.74240586,1771.4,1771.0,6.26749399]
[1745509661946,5.097,1771.4,1771.0,0.67761271]
[1745509662147,5.097,1771.4,1771.2,5.64588053]
[1745509662349,5.097,1771.4,1771.1,6.16939981]
[1745509662559,5.097,1771.4,1771.1,7.41308873]
[1745509662765,5.097,1771.4,1771.2,0.52332734]
[1745509662923,6.42276634,1771.5,1771.2,0.52332734]
[1745509663122,11.51976634,1771.5,1771.3,0.52332734]
[1745509663323,5.8748,1771.5,1771.3,0.52332734]
[1745509663867,11.5198908,1771.5,1771.1,6.88970337]
[1745509664024,5.6452551,1771.4,1771.1,6.88970337]
[1745509664224,11.5198908,1771.5,1771.1,6.88970337]
[1745509664225,17.16507909,1771.5,1771.1,6.88970337]
[1745509664424,6.4228908,1771.5,1771.2,0.52301494]
[1745509664924,6.4228908,1771.5,1771.3,0.52301494]
[1745509665232,0.7778,1771.5,1771.3,0.52301494]
[1745509665640,6.42295922,1771.5,1771.1,6.88970337]
[1745509665869,5.6452795,1771.4,1771.1,5.64601445]
[1745509666028,5.6452795,1771.4,1771.2,0.5230357]
[1745509666766,5.6452795,1771.4,1771.3,0.5230357]
[1745509666938,11.51995922,1771.5,1771.3,0.5230357]
[1745509667365,5.64525234,1771.4,1771.2,0.5230357]
[1745509668172,5.64525234,1771.4,1771.3,0.5230357]
[1745509668627,11.51995922,1771.5,1771.3,0.5230357]
[1745509669337,11.51995922,1771.5,1771.1,5.64611592]
[1745509669674,16.932,1771.9,1771.1,1.12924171]
[1745509669821,22.8342,1771.9,1771.6,5.64449186]
[1745509670091,6.1022,1772.1,1771.8,5.64395872]
[1745509670328,0.2,1772.1,1771.9,0.52369277]
[1745509671038,0.2,1772.1,1772.0,0.52369277]
[1745509671953,5.8430224,1772.1,1772.0,0.52369277]
[1745509672158,0.2,1772.1,1772.0,0.52369277]
[1745509672834,0.2,1772.1,1771.7,11.28813228]
[1745509673160,5.6435348,1772.0,1771.7,1.12881323]
[1745509673477,5.6435348,1772.0,1771.8,0.52135716]
[1745509673655,5.6435348,1772.0,1771.7,1.12881323]
[1745509675465,10.939212,1772.1,1771.8,0.52104909]
[1745509675650,5.64338041,1772.0,1771.7,1.12881323]
[1745509678067,6.42428041,1772.0,1771.7,1.12881323]
[1745509679351,0.7809,1772.0,1771.7,6.77309785]
[1745509679726,6.42427081,1772.0,1771.7,6.77309785]
[1745509679951,6.42427081,1772.0,1771.7,6.77309047]
[1745509680154,10.93817835,1772.1,1771.8,0.67730979]
[1745509680371,0.2,1772.1,1771.9,5.6434528]
[1745509680568,0.2,1772.1,1771.8,6.32126236]
[1745509680927,0.2,1772.1,1771.8,0.73374163]
[1745509681237,0.2,1772.3,1772.0,5.64334085]
[1745509681444,0.2,1772.3,1772.0,5.69976747]
[1745509682032,0.2,1772.3,1772.2,5.64270398]
[1745509682238,0.2,1772.3,1772.2,5.69912065]
[1745509682634,0.2,1772.7,1772.6,5.64143066]
[1745509683382,0.2,1772.7,1772.6,1.64835364]
[1745509683584,0.2,1772.7,1772.6,0.52003568]
[1745509683935,0.2,1772.7,1772.5,0.05641053]
[1745509684172,0.2,1772.7,1772.4,5.64186428]
[1745509684371,0.2,1772.7,1772.5,5.69815696]
[1745509684675,0.2,1772.7,1772.5,0.05641053]
[1745509684879,5.84111531,1772.7,1772.5,0.56982662]
[1745509685129,12.28358862,1772.7,1772.3,5.64220145]
[1745509685280,12.28358862,1772.7,1772.2,8.64248534]
[1745509685570,1.0011,1772.7,1772.1,5.64288833]
[1745509685774,5.64158564,1772.6,1772.1,5.64279791]
[1745509685978,5.64158564,1772.6,1772.2,5.64256875]
[1745509686165,5.64158564,1772.6,1772.3,0.56425688]
[1745509686567,5.64186598,1772.5,1772.1,5.64287286]
[1745509686956,11.28386286,1772.5,1772.1,5.64287286]
[1745509687458,5.64207807,1772.4,1772.0,13.7351339]
[1745509687777,0.8245,1772.4,1772.1,5.6429384]
[1745509688073,0.8245,1772.4,1772.2,0.56429384]
[1745509688910,0.8245,1772.4,1771.7,5.6440768]
[1745509688911,5.6432252,1772.1,1771.7,5.6440768]
[1745509689121,5.64334528,1772.0,1771.6,10.73543815]
[1745509689408,6.4761959,1772.1,1771.3,5.64557104]
[1745509689607,5.64346539,1772.0,1771.6,5.64431799]
[1745509689904,0.833,1772.1,1771.7,6.20858224]
[1745509690121,6.47626027,1772.1,1771.7,6.20858224]
[1745509690278,12.11953989,1772.1,1771.7,6.20858224]
[1745509690479,5.64336769,1772.0,1771.7,0.5644318]
[1745509690698,0.833,1772.1,1771.7,0.5644318]
[1745509690892,6.47617283,1772.1,1771.7,6.20872556]
[1745509691187,10.73387999,1772.2,1771.8,7.26858789]
[1745509691510,5.64302823,1772.1,1771.8,1.62471795]
[1745509691812,10.73387999,1772.2,1771.8,1.62471795]
[1745509692012,10.73387999,1772.2,1771.8,7.26862625]
[1745509692210,16.3768629,1772.2,1771.9,0.72686263]
[1745509692376,16.3768629,1772.2,1771.8,1.62471795]
[1745509692571,10.73387999,1772.2,1771.8,1.62471795]
[1745509693107,5.64311467,1772.1,1771.8,0.62087256]
[1745509693307,5.091,1772.2,1771.7,0.5644318]
[1745509693603,5.64348707,1772.0,1771.6,5.64446634]
[1745509693816,5.64317244,1772.1,1771.7,5.64418546]
[1745509694018,6.47298815,1772.0,1771.5,12.2933872]
[1745509694222,6.47298815,1772.0,1771.6,5.64458255]
[1745509694595,6.47298815,1772.0,1771.7,0.51994969]
[1745509694773,6.41507787,1771.8,1771.7,0.51994969]
[1745509695138,5.64525989,1771.4,1771.1,5.64620486]
[1745509695279,5.64516221,1771.5,1771.1,5.64620486]
[1745509695280,5.64512159,1771.5,1771.1,5.64620486]
[1745509695674,11.28972037,1771.6,1771.2,6.21044455]
[1745509695910,5.64496184,1771.5,1771.2,0.56462049]
[1745509697233,5.64472982,1771.6,1771.2,6.21045945]
[1745509697534,6.41556107,1771.7,1771.2,0.56462049]
[1745509697535,0.7711,1771.7,1771.2,0.56462049]
[1745509697738,5.64495901,1771.5,1771.2,0.56462049]
[1745509698437,5.64569022,1771.3,1770.9,5.6466534]
[1745509698587,5.64569022,1771.3,1770.9,11.29327984]
[1745509698783,5.64569022,1771.3,1771.0,0.52102727]
[1745509699030,6.43290857,1771.1,1771.0,0.52102727]
[1745509699193,10.58539943,1771.1,1771.0,0.52102727]
[1745509699393,11.29534446,1770.7,1770.2,5.6490594]
[1745509699625,11.22136135,1770.7,1770.2,5.64884258]
[1745509699929,5.648282,1770.5,1770.1,5.64935572]
[1745509700160,0.2,1770.5,1770.0,0.43202071]
[1745509700432,0.2,1770.5,1770.2,5.64886492]
[1745509700592,0.2,1770.5,1770.3,0.56488649]
[1745509702131,0.2,1770.5,1770.1,5.64924791]
[1745509702319,6.44678228,1770.5,1770.1,5.64922606]
[1745509702500,0.2,1770.6,1770.1,0.05648437]
[1745509702828,5.84784935,1770.6,1770.1,5.6491668]
[1745509703229,11.49590897,1770.6,1770.0,6.06915656]
[1745509703415,5.64831259,1770.5,1770.1,0.60691566]
[1745509703737,5.64857136,1770.4,1770.1,0.60691566]
[1745509703956,5.84799129,1770.6,1770.1,6.25619302]
[1745509704233,5.6482522,1770.5,1770.1,6.25619302]
[1745509704530,5.84793364,1770.6,1770.1,11.90539208]
[1745509704722,5.84793364,1770.6,1770.2,6.83961613]
[1745509704922,5.84791592,1770.6,1770.2,1.19053921]
[1745509705130,0.2,1770.6,1770.3,5.64860626]
[1745509705306,0.2,1770.6,1770.2,6.83946487]
[1745509705610,5.84795277,1770.6,1770.2,6.83946487]
[1745509706942,5.84795277,1770.6,1770.2,5.64892566]
[1745509707113,5.64827655,1770.5,1770.0,5.64951731]
[1745509707313,11.4960008,1770.6,1770.2,5.64907427]
[1745509707614,5.64833872,1770.5,1770.0,5.64957866]
[1745509708011,5.64857628,1770.4,1770.0,11.29900558]
[1745509708198,5.64857628,1770.4,1770.1,1.12990056]
[1745509708421,11.29728444,1770.4,1770.1,1.12990056]